[Event "Titled Tuesday Blitz October 25 Late 2022"]
[White "Buscar, Michael"]
[Black "Gogolev, Artem"]
[WhiteFideId "2603616"]
[BlackFideId "4116615"]
[WhiteElo "2010"]
[BlackElo "2178"]
[Result "1/2-1/2"]
[Round "07"]
[TimeControl "180+1"]
[Date "2022.10.26"]
[WhiteClock "0:00:49"]
[BlackClock "0:00:22"]

1. Nf3 {[%clk 0:03:00]}  g6 {[%clk 0:02:59]} 2. g3 {[%clk 0:03:00]}  Bg7 {[%clk 0:02:58]} 3. Bg2 {[%clk 0:03:01]}  d5 {[%clk 0:02:59]} 4. d4 {[%clk 0:03:00]}  Nf6 {[%clk 0:02:56]} 5. c4 {[%clk 0:02:59]}  O-O {[%clk 0:02:57]} 6. O-O {[%clk 0:02:56]}  c6 {[%clk 0:02:54]} 7. cxd5 {[%clk 0:02:50]}  cxd5 {[%clk 0:02:51]} 8. Nc3 {[%clk 0:02:51]}  Qb6 {[%clk 0:02:41]} 9. Qb3 {[%clk 0:02:49]}  Qxb3 {[%clk 0:02:38]} 10. axb3 {[%clk 0:02:48]}  Nc6 {[%clk 0:02:38]} 11. Bf4 {[%clk 0:02:44]}  Bf5 {[%clk 0:02:32]} 12. Ra4 {[%clk 0:02:28]}  Rfc8 {[%clk 0:02:27]} 13. Ne5 {[%clk 0:02:27]}  e6 {[%clk 0:02:19]} 14. Rfa1 {[%clk 0:02:21]}  a6 {[%clk 0:02:14]} 15. Nxc6 {[%clk 0:02:10]}  Rxc6 {[%clk 0:02:12]} 16. b4 {[%clk 0:02:11]}  Bc2 {[%clk 0:01:56]} 17. R4a3 {[%clk 0:02:05]}  Rac8 {[%clk 0:01:49]} 18. b5 {[%clk 0:02:02]}  axb5 {[%clk 0:01:47]} 19. Nxb5 {[%clk 0:02:02]}  Bf8 {[%clk 0:01:46]} 20. Ra8 {[%clk 0:01:46]}  Kg7 {[%clk 0:01:31]} 21. Be5 {[%clk 0:01:42]}  Be7 {[%clk 0:01:26]} 22. R1a7 {[%clk 0:01:31]}  Rxa8 {[%clk 0:01:25]} 23. Rxa8 {[%clk 0:01:32]}  Rb6 {[%clk 0:01:24]} 24. Nc7 {[%clk 0:01:27]}  Rxb2 {[%clk 0:01:21]} 25. Ne8+ {[%clk 0:01:24]}  Kh6 {[%clk 0:01:11]} 26. Nxf6 {[%clk 0:01:22]}  Rb1+ {[%clk 0:01:09]} 27. Bf1 {[%clk 0:01:22]}  Bf5 {[%clk 0:01:07]} 28. g4 {[%clk 0:01:19]}  Bxf6 {[%clk 0:01:01]} 29. gxf5 {[%clk 0:01:17]}  Bxe5 {[%clk 0:01:02]} 30. dxe5 {[%clk 0:01:16]}  gxf5 {[%clk 0:00:59]} 31. Kg2 {[%clk 0:01:14]}  Rb4 {[%clk 0:00:54]} 32. e3 {[%clk 0:01:13]}  Re4 {[%clk 0:00:48]} 33. Rb8 {[%clk 0:01:10]}  Rxe5 {[%clk 0:00:47]} 34. Rxb7 {[%clk 0:01:08]}  Kg7 {[%clk 0:00:44]} 35. Rb4 {[%clk 0:01:05]}  Re4 {[%clk 0:00:39]} 36. Rxe4 {[%clk 0:01:05]}  fxe4 {[%clk 0:00:34]} 37. Kg3 {[%clk 0:01:04]}  e5 {[%clk 0:00:33]} 38. Bh3 {[%clk 0:00:59]}  Kg6 {[%clk 0:00:30]} 39. Bd7 {[%clk 0:00:59]}  f5 {[%clk 0:00:30]} 40. Bc6 {[%clk 0:00:55]}  d4 {[%clk 0:00:27]} 41. exd4 {[%clk 0:00:56]}  exd4 {[%clk 0:00:23]} 42. Kf4 {[%clk 0:00:56]}  e3 {[%clk 0:00:17]} 43. fxe3 {[%clk 0:00:48]}  dxe3 {[%clk 0:00:17]} 44. Kxe3 {[%clk 0:00:49]}  h5 {[%clk 0:00:17]} 45. Kf4 {[%clk 0:00:49]}  h4 {[%clk 0:00:16]} 46. Bd7 {[%clk 0:00:49]}  Kf6 {[%clk 0:00:15]} 47. Be8 {[%clk 0:00:48]}  Kg7 {[%clk 0:00:16]} 48. Kg5 {[%clk 0:00:48]}  Kh8 {[%clk 0:00:16]} 49. Kxh4 {[%clk 0:00:48]}  f4 {[%clk 0:00:16]} 50. Bb5 {[%clk 0:00:46]}  f3 {[%clk 0:00:17]} 51. Bf1 {[%clk 0:00:47]}  f2 {[%clk 0:00:16]} 52. Kg3 {[%clk 0:00:47]}  Kg7 {[%clk 0:00:17]} 53. Kxf2 {[%clk 0:00:47]}  Kh8 {[%clk 0:00:18]} 54. Kg3 {[%clk 0:00:48]}  Kg7 {[%clk 0:00:19]} 55. Kg4 {[%clk 0:00:48]}  Kh8 {[%clk 0:00:20]} 56. Kg5 {[%clk 0:00:49]}  Kg7 {[%clk 0:00:21]} 57. Kh5 {[%clk 0:00:49]}  Kh8 {[%clk 0:00:22]} 58. Kh6 {[%clk 0:00:49]}  Kg8 {[%clk 0:00:22]} 1/2-1/2


[Site "https://www.chess.com"]

[Event "Titled Tuesday Blitz October 25 Late 2022"]
[White "Chigaev, Maksim"]
[Black "Putnam, Liam"]
[WhiteFideId "4108116"]
[BlackFideId "30938279"]
[WhiteElo "2537"]
[BlackElo "2082"]
[Result "0-1"]
[Round "07"]
[TimeControl "180+1"]
[Date "2022.10.26"]
[WhiteClock "0:00:04"]
[BlackClock "0:00:04"]

1. Nf3 {[%clk 0:03:00]}  d5 {[%clk 0:02:58]} 2. c4 {[%clk 0:03:01]}  d4 {[%clk 0:02:59]} 3. b4 {[%clk 0:03:01]}  c5 {[%clk 0:02:54]} 4. g3 {[%clk 0:03:00]}  Nf6 {[%clk 0:02:50]} 5. Bg2 {[%clk 0:03:00]}  Qc7 {[%clk 0:02:50]} 6. O-O {[%clk 0:02:47]}  e5 {[%clk 0:02:50]} 7. bxc5 {[%clk 0:02:44]}  Bxc5 {[%clk 0:02:51]} 8. d3 {[%clk 0:02:44]}  O-O {[%clk 0:02:50]} 9. a4 {[%clk 0:02:40]}  Re8 {[%clk 0:02:46]} 10. Ba3 {[%clk 0:02:41]}  Nbd7 {[%clk 0:02:36]} 11. Nfd2 {[%clk 0:02:41]}  Rb8 {[%clk 0:02:31]} 12. Nb3 {[%clk 0:02:41]}  Bxa3 {[%clk 0:02:30]} 13. Nxa3 {[%clk 0:02:42]}  a6 {[%clk 0:02:27]} 14. a5 {[%clk 0:02:42]}  Nc5 {[%clk 0:02:25]} 15. Nxc5 {[%clk 0:02:36]}  Qxc5 {[%clk 0:02:26]} 16. Nc2 {[%clk 0:02:36]}  b5 {[%clk 0:02:19]} 17. axb6 {[%clk 0:02:35]}  Rxb6 {[%clk 0:02:19]} 18. Qc1 {[%clk 0:02:34]}  Bg4 {[%clk 0:01:10]} 19. Re1 {[%clk 0:02:31]}  Reb8 {[%clk 0:01:09]} 20. h3 {[%clk 0:02:28]}  Bc8 {[%clk 0:01:02]} 21. Qa3 {[%clk 0:02:23]}  Qc7 {[%clk 0:00:46]} 22. Qa5 {[%clk 0:02:07]}  Qe7 {[%clk 0:00:37]} 23. e3 {[%clk 0:02:05]}  Rb2 {[%clk 0:00:33]} 24. Rac1 {[%clk 0:01:51]}  dxe3 {[%clk 0:00:28]} 25. Nxe3 {[%clk 0:01:50]}  h6 {[%clk 0:00:27]} 26. c5 {[%clk 0:01:31]}  R2b5 {[%clk 0:00:21]} 27. Qc3 {[%clk 0:01:31]}  Rb3 {[%clk 0:00:20]} 28. Qa1 {[%clk 0:01:31]}  Rxd3 {[%clk 0:00:20]} 29. c6 {[%clk 0:01:30]}  e4 {[%clk 0:00:19]} 30. Rb1 {[%clk 0:00:50]}  Rxb1 {[%clk 0:00:16]} 31. Rxb1 {[%clk 0:00:51]}  Qc7 {[%clk 0:00:16]} 32. Rc1 {[%clk 0:00:45]}  Rd6 {[%clk 0:00:15]} 33. Qa4 {[%clk 0:00:41]}  Bd7 {[%clk 0:00:12]} 34. Qxa6 {[%clk 0:00:21]}  Rxc6 {[%clk 0:00:12]} 35. Qa8+ {[%clk 0:00:21]}  Kh7 {[%clk 0:00:10]} 36. Rf1 {[%clk 0:00:21]}  g6 {[%clk 0:00:06]} 37. Qa2 {[%clk 0:00:20]}  Kg7 {[%clk 0:00:06]} 38. Qa1 {[%clk 0:00:20]}  Be6 {[%clk 0:00:06]} 39. Bxe4 {[%clk 0:00:13]}  Rc5 {[%clk 0:00:05]} 40. Bg2 {[%clk 0:00:13]}  Qe5 {[%clk 0:00:05]} 41. Qa3 {[%clk 0:00:14]}  h5 {[%clk 0:00:05]} 42. Re1 {[%clk 0:00:13]}  Rc3 {[%clk 0:00:05]} 43. Qa1 {[%clk 0:00:08]}  Qc5 {[%clk 0:00:05]} 44. Kh2 {[%clk 0:00:08]}  h4 {[%clk 0:00:05]} 45. gxh4 {[%clk 0:00:08]}  Qe5+ {[%clk 0:00:05]} 46. Kg1 {[%clk 0:00:08]}  Qd4 {[%clk 0:00:05]} 47. Rd1 {[%clk 0:00:07]}  Qc5 {[%clk 0:00:04]} 48. Re1 {[%clk 0:00:07]}  Ra3 {[%clk 0:00:04]} 49. Ng4 {[%clk 0:00:04]}  Rxa1 {[%clk 0:00:04]} 0-1


[Site "https://www.chess.com"]

[Event "Titled Tuesday Blitz October 25 Late 2022"]
[White "Curtis, John"]
[Black "Barash, Anton"]
[WhiteFideId "3200256"]
[BlackFideId "30935229"]
[WhiteElo "2203"]
[BlackElo "2279"]
[Result "1-0"]
[Round "07"]
[TimeControl "180+1"]
[Date "2022.10.26"]
[WhiteClock "0:01:01"]
[BlackClock "0:00:03"]

1. e4 {[%clk 0:03:00]}  e6 {[%clk 0:02:59]} 2. d4 {[%clk 0:03:00]}  d5 {[%clk 0:02:46]} 3. Nc3 {[%clk 0:03:00]}  Bb4 {[%clk 0:02:44]} 4. e5 {[%clk 0:02:58]}  c5 {[%clk 0:02:44]} 5. a3 {[%clk 0:02:58]}  Bxc3+ {[%clk 0:02:45]} 6. bxc3 {[%clk 0:02:59]}  Ne7 {[%clk 0:02:45]} 7. Bd3 {[%clk 0:02:59]}  Qa5 {[%clk 0:02:42]} 8. Qd2 {[%clk 0:02:58]}  c4 {[%clk 0:02:41]} 9. Be2 {[%clk 0:02:58]}  Bd7 {[%clk 0:02:39]} 10. a4 {[%clk 0:02:58]}  Nbc6 {[%clk 0:02:39]} 11. Ba3 {[%clk 0:02:58]}  O-O-O {[%clk 0:02:37]} 12. Bb4 {[%clk 0:02:55]}  Qa6 {[%clk 0:02:36]} 13. a5 {[%clk 0:02:51]}  f6 {[%clk 0:02:31]} 14. Nf3 {[%clk 0:02:48]}  fxe5 {[%clk 0:02:29]} 15. Nxe5 {[%clk 0:02:48]}  Nxe5 {[%clk 0:02:26]} 16. Bxe7 {[%clk 0:02:45]}  Rde8 {[%clk 0:02:26]} 17. Bd6 {[%clk 0:02:19]}  Qxd6 {[%clk 0:02:24]} 18. dxe5 {[%clk 0:02:19]}  Qxe5 {[%clk 0:02:22]} 19. O-O {[%clk 0:02:19]}  Qc7 {[%clk 0:02:10]} 20. Qd4 {[%clk 0:02:15]}  Kb8 {[%clk 0:02:03]} 21. Qxg7 {[%clk 0:02:08]}  Reg8 {[%clk 0:01:53]} 22. Qd4 {[%clk 0:01:59]}  e5 {[%clk 0:01:40]} 23. Qe3 {[%clk 0:01:56]}  Bc6 {[%clk 0:01:35]} 24. g3 {[%clk 0:01:46]}  h5 {[%clk 0:01:32]} 25. Bf3 {[%clk 0:01:35]}  h4 {[%clk 0:01:19]} 26. Bg2 {[%clk 0:01:32]}  hxg3 {[%clk 0:00:53]} 27. fxg3 {[%clk 0:01:24]}  Rh5 {[%clk 0:00:44]} 28. Rf2 {[%clk 0:01:16]}  Rgh8 {[%clk 0:00:33]} 29. Raf1 {[%clk 0:01:15]}  Qg7 {[%clk 0:00:29]} 30. Rf7 {[%clk 0:01:12]}  Qh6 {[%clk 0:00:13]} 31. Qc5 {[%clk 0:01:07]}  Rxh2 {[%clk 0:00:02]} 32. Rf8+ {[%clk 0:01:06]}  Rxf8 {[%clk 0:00:03]} 33. Qxf8+ {[%clk 0:01:01]} 1-0


[Site "https://www.chess.com"]

[Event "Titled Tuesday Blitz October 25 Late 2022"]
[White "Czernek, Tymon"]
[Black "Barbero Sendic, Alejandro"]
[WhiteFideId "1199510"]
[BlackFideId "3001288"]
[WhiteElo "2240"]
[BlackElo "2314"]
[Result "0-1"]
[Round "07"]
[TimeControl "180+1"]
[Date "2022.10.26"]
[WhiteClock "0:01:17"]
[BlackClock "0:01:49"]

1. e4 {[%clk 0:03:00]}  g6 {[%clk 0:02:59]} 2. d4 {[%clk 0:03:00]}  Bg7 {[%clk 0:02:59]} 3. Nc3 {[%clk 0:03:00]}  d6 {[%clk 0:02:59]} 4. f4 {[%clk 0:02:59]}  Nf6 {[%clk 0:02:55]} 5. Nf3 {[%clk 0:03:00]}  O-O {[%clk 0:02:55]} 6. Be2 {[%clk 0:02:59]}  c5 {[%clk 0:02:47]} 7. dxc5 {[%clk 0:02:55]}  dxc5 {[%clk 0:02:46]} 8. Qxd8 {[%clk 0:02:54]}  Rxd8 {[%clk 0:02:46]} 9. Be3 {[%clk 0:02:54]}  b6 {[%clk 0:02:44]} 10. h3 {[%clk 0:02:53]}  Nc6 {[%clk 0:02:43]} 11. O-O {[%clk 0:02:51]}  Nb4 {[%clk 0:02:39]} 12. Rac1 {[%clk 0:02:50]}  Bb7 {[%clk 0:02:39]} 13. a3 {[%clk 0:02:44]}  Nc6 {[%clk 0:02:27]} 14. e5 {[%clk 0:02:44]}  Nd5 {[%clk 0:02:15]} 15. Nxd5 {[%clk 0:02:43]}  Rxd5 {[%clk 0:02:16]} 16. Bc4 {[%clk 0:02:42]}  Rdd8 {[%clk 0:02:12]} 17. Ng5 {[%clk 0:02:20]}  e6 {[%clk 0:02:12]} 18. g4 {[%clk 0:02:18]}  Nd4 {[%clk 0:02:04]} 19. f5 {[%clk 0:02:13]}  h6 {[%clk 0:01:55]} 20. Bxd4 {[%clk 0:01:52]}  Rxd4 {[%clk 0:01:52]} 21. fxe6 {[%clk 0:01:19]}  hxg5 {[%clk 0:01:49]} 22. exf7+ {[%clk 0:01:17]}  Kf8 {[%clk 0:01:49]} 0-1


[Site "https://www.chess.com"]

[Event "Titled Tuesday Blitz October 25 Late 2022"]
[White "Dardha, Daniel"]
[Black "Ibarra Jerez, Jose Carlos"]
[WhiteFideId "240990"]
[BlackFideId "2226332"]
[WhiteElo "2528"]
[BlackElo "2627"]
[Result "1-0"]
[Round "07"]
[TimeControl "180+1"]
[Date "2022.10.26"]
[WhiteClock "0:00:58"]
[BlackClock "0:00:12"]

1. e4 {[%clk 0:03:00]}  c5 {[%clk 0:02:59]} 2. Nf3 {[%clk 0:03:01]}  Nc6 {[%clk 0:03:00]} 3. Bb5 {[%clk 0:03:00]}  e6 {[%clk 0:02:59]} 4. Bxc6 {[%clk 0:03:00]}  bxc6 {[%clk 0:02:59]} 5. d3 {[%clk 0:02:58]}  Qc7 {[%clk 0:02:59]} 6. h4 {[%clk 0:02:57]}  e5 {[%clk 0:02:54]} 7. h5 {[%clk 0:02:57]}  h6 {[%clk 0:02:52]} 8. Qe2 {[%clk 0:02:57]}  Nf6 {[%clk 0:02:51]} 9. Nbd2 {[%clk 0:02:55]}  d6 {[%clk 0:02:51]} 10. Nh4 {[%clk 0:02:45]}  Bg4 {[%clk 0:02:45]} 11. f3 {[%clk 0:02:45]}  Be6 {[%clk 0:02:35]} 12. g4 {[%clk 0:02:36]}  Be7 {[%clk 0:02:35]} 13. Nc4 {[%clk 0:02:35]}  Nd7 {[%clk 0:02:33]} 14. Nf5 {[%clk 0:02:34]}  Bxf5 {[%clk 0:02:32]} 15. gxf5 {[%clk 0:02:32]}  Bg5 {[%clk 0:02:19]} 16. Bd2 {[%clk 0:02:28]}  f6 {[%clk 0:02:12]} 17. O-O-O {[%clk 0:02:20]}  Nb6 {[%clk 0:02:09]} 18. Kb1 {[%clk 0:02:16]}  O-O-O {[%clk 0:02:04]} 19. Ba5 {[%clk 0:02:13]}  Kb7 {[%clk 0:01:59]} 20. c3 {[%clk 0:02:10]}  d5 {[%clk 0:01:46]} 21. Nd2 {[%clk 0:02:09]}  Ka6 {[%clk 0:01:36]} 22. Nb3 {[%clk 0:02:04]}  Qe7 {[%clk 0:01:25]} 23. d4+ {[%clk 0:01:36]}  c4 {[%clk 0:01:25]} 24. Bb4 {[%clk 0:01:32]}  c5 {[%clk 0:01:02]} 25. dxc5 {[%clk 0:01:24]}  Nc8 {[%clk 0:00:36]} 26. Rxd5 {[%clk 0:01:16]}  Qc7 {[%clk 0:00:28]} 27. Qxc4+ {[%clk 0:01:11]}  Kb7 {[%clk 0:00:28]} 28. Rhd1 {[%clk 0:01:05]}  Rxd5 {[%clk 0:00:23]} 29. exd5 {[%clk 0:01:05]}  Ka8 {[%clk 0:00:19]} 30. d6 {[%clk 0:01:02]}  Qc6 {[%clk 0:00:19]} 31. Qe4 {[%clk 0:01:00]}  Qxe4+ {[%clk 0:00:13]} 32. fxe4 {[%clk 0:01:01]}  Rd8 {[%clk 0:00:12]} 33. c6 {[%clk 0:01:00]}  Nb6 {[%clk 0:00:12]} 34. d7 {[%clk 0:00:58]} 1-0


[Site "https://www.chess.com"]

[Event "Titled Tuesday Blitz October 25 Late 2022"]
[White "Djordjevic, Dejan N"]
[Black "Wieczorek, Zbigniew"]
[WhiteFideId "913316"]
[BlackFideId "1102001"]
[WhiteElo "2262"]
[BlackElo "2351"]
[Result "0-1"]
[Round "07"]
[TimeControl "180+1"]
[Date "2022.10.26"]
[WhiteClock "0:01:14"]
[BlackClock "0:01:38"]

1. e4 {[%clk 0:03:00]}  g6 {[%clk 0:02:58]} 2. d4 {[%clk 0:03:00]}  Bg7 {[%clk 0:02:58]} 3. g3 {[%clk 0:03:00]}  c6 {[%clk 0:02:57]} 4. Bg2 {[%clk 0:03:00]}  d5 {[%clk 0:02:58]} 5. e5 {[%clk 0:02:58]}  f6 {[%clk 0:02:57]} 6. f4 {[%clk 0:02:58]}  Nh6 {[%clk 0:02:57]} 7. h3 {[%clk 0:02:57]}  O-O {[%clk 0:02:57]} 8. Ne2 {[%clk 0:02:56]}  fxe5 {[%clk 0:02:49]} 9. dxe5 {[%clk 0:02:54]}  e6 {[%clk 0:02:46]} 10. O-O {[%clk 0:02:52]}  c5 {[%clk 0:02:46]} 11. c3 {[%clk 0:02:52]}  Nc6 {[%clk 0:02:46]} 12. Be3 {[%clk 0:02:46]}  b6 {[%clk 0:02:46]} 13. Bf2 {[%clk 0:02:41]}  Bb7 {[%clk 0:02:43]} 14. Nd2 {[%clk 0:02:37]}  Qe7 {[%clk 0:02:43]} 15. Nf3 {[%clk 0:02:37]}  Rad8 {[%clk 0:02:43]} 16. Ng5 {[%clk 0:02:37]}  Nxe5 {[%clk 0:02:38]} 17. Re1 {[%clk 0:02:11]}  Nc4 {[%clk 0:02:32]} 18. b3 {[%clk 0:02:09]}  Nd6 {[%clk 0:02:24]} 19. Rc1 {[%clk 0:02:06]}  Qf6 {[%clk 0:02:14]} 20. Qd2 {[%clk 0:02:02]}  Nhf7 {[%clk 0:02:10]} 21. Nxf7 {[%clk 0:01:52]}  Qxf7 {[%clk 0:02:05]} 22. Qe3 {[%clk 0:01:45]}  Rde8 {[%clk 0:02:00]} 23. Kh2 {[%clk 0:01:39]}  e5 {[%clk 0:02:00]} 24. Qd3 {[%clk 0:01:24]}  e4 {[%clk 0:01:56]} 25. Qd2 {[%clk 0:01:19]}  h5 {[%clk 0:01:47]} 26. h4 {[%clk 0:01:16]}  Nf5 {[%clk 0:01:44]} 27. Ng1 {[%clk 0:01:16]}  d4 {[%clk 0:01:37]} 28. cxd4 {[%clk 0:01:14]}  cxd4 {[%clk 0:01:38]} 0-1


[Site "https://www.chess.com"]

[Event "Titled Tuesday Blitz October 25 Late 2022"]
[White "Ezat, Mohamed"]
[Black "Lorenzo De La Riva, Lazaro"]
[WhiteFideId "10600906"]
[BlackFideId "2268809"]
[WhiteElo "2386"]
[BlackElo "2325"]
[Result "1-0"]
[Round "07"]
[TimeControl "180+1"]
[Date "2022.10.26"]
[WhiteClock "0:00:31"]
[BlackClock "0:00:13"]

1. e3 {[%clk 0:02:32]}  d5 {[%clk 0:02:59]} 2. d4 {[%clk 0:02:26]}  e6 {[%clk 0:02:59]} 3. c4 {[%clk 0:02:26]}  Nf6 {[%clk 0:02:58]} 4. Nc3 {[%clk 0:02:25]}  Nbd7 {[%clk 0:02:48]} 5. Bd3 {[%clk 0:02:09]}  c6 {[%clk 0:02:39]} 6. Nf3 {[%clk 0:02:07]}  dxc4 {[%clk 0:02:38]} 7. Bxc4 {[%clk 0:02:06]}  b5 {[%clk 0:02:38]} 8. Bd3 {[%clk 0:02:05]}  Bb7 {[%clk 0:02:38]} 9. O-O {[%clk 0:02:03]}  a6 {[%clk 0:02:37]} 10. e4 {[%clk 0:02:02]}  c5 {[%clk 0:02:37]} 11. d5 {[%clk 0:02:01]}  Qc7 {[%clk 0:02:37]} 12. dxe6 {[%clk 0:01:58]}  fxe6 {[%clk 0:02:38]} 13. e5 {[%clk 0:01:58]}  Ng4 {[%clk 0:02:09]} 14. Bf4 {[%clk 0:01:54]}  O-O-O {[%clk 0:02:02]} 15. Bxb5 {[%clk 0:01:44]}  Ndxe5 {[%clk 0:01:50]} 16. Nxe5 {[%clk 0:01:14]}  Rxd1 {[%clk 0:01:41]} 17. Raxd1 {[%clk 0:01:12]}  Nxe5 {[%clk 0:01:39]} 18. Bd3 {[%clk 0:01:09]}  g5 {[%clk 0:01:19]} 19. Bg3 {[%clk 0:01:05]}  h5 {[%clk 0:01:07]} 20. Be4 {[%clk 0:01:04]}  h4 {[%clk 0:01:01]} 21. Bxe5 {[%clk 0:01:02]}  Qxe5 {[%clk 0:00:59]} 22. Bxb7+ {[%clk 0:01:02]}  Kxb7 {[%clk 0:00:59]} 23. Rfe1 {[%clk 0:01:00]}  Qf5 {[%clk 0:00:35]} 24. Ne4 {[%clk 0:00:59]}  Kc6 {[%clk 0:00:31]} 25. Rd8 {[%clk 0:00:56]}  Bg7 {[%clk 0:00:28]} 26. Rd6+ {[%clk 0:00:56]}  Kc7 {[%clk 0:00:29]} 27. Rxa6 {[%clk 0:00:54]}  Bd4 {[%clk 0:00:28]} 28. b4 {[%clk 0:00:50]}  Rf8 {[%clk 0:00:25]} 29. Re2 {[%clk 0:00:46]}  Bxf2+ {[%clk 0:00:22]} 30. Rxf2 {[%clk 0:00:41]}  Qxe4 {[%clk 0:00:22]} 31. Rxf8 {[%clk 0:00:40]}  Qe3+ {[%clk 0:00:20]} 32. Rf2 {[%clk 0:00:39]}  Qe1+ {[%clk 0:00:18]} 33. Rf1 {[%clk 0:00:39]}  Qe3+ {[%clk 0:00:18]} 34. Kh1 {[%clk 0:00:39]}  c4 {[%clk 0:00:18]} 35. b5 {[%clk 0:00:38]}  c3 {[%clk 0:00:18]} 36. Rc6+ {[%clk 0:00:38]}  Kb7 {[%clk 0:00:18]} 37. a4 {[%clk 0:00:35]}  h3 {[%clk 0:00:17]} 38. a5 {[%clk 0:00:32]}  Qe4 {[%clk 0:00:14]} 39. a6+ {[%clk 0:00:32]}  Kb8 {[%clk 0:00:14]} 40. Rf8+ {[%clk 0:00:31]}  Ka7 {[%clk 0:00:14]} 41. Rf7+ {[%clk 0:00:31]}  Kb8 {[%clk 0:00:14]} 42. a7+ {[%clk 0:00:31]}  Ka8 {[%clk 0:00:13]} 43. Rc8# {[%clk 0:00:31]} 1-0


[Site "https://www.chess.com"]

[Event "Titled Tuesday Blitz October 25 Late 2022"]
[White "Faizrakhmanov, Ramil"]
[Black "Kisic, Bozidar"]
[WhiteFideId "24103209"]
[BlackFideId "16500350"]
[WhiteElo "2421"]
[BlackElo "2233"]
[Result "1-0"]
[Round "07"]
[TimeControl "180+1"]
[Date "2022.10.26"]
[WhiteClock "0:00:54"]
[BlackClock "0:00:23"]

1. d4 {[%clk 0:03:00]}  d5 {[%clk 0:02:59]} 2. c4 {[%clk 0:03:00]}  e6 {[%clk 0:02:59]} 3. Nf3 {[%clk 0:02:59]}  dxc4 {[%clk 0:02:59]} 4. e3 {[%clk 0:02:59]}  b5 {[%clk 0:02:54]} 5. a4 {[%clk 0:02:58]}  c6 {[%clk 0:02:51]} 6. b3 {[%clk 0:02:56]}  Bb4+ {[%clk 0:02:41]} 7. Bd2 {[%clk 0:02:54]}  Bxd2+ {[%clk 0:02:39]} 8. Nfxd2 {[%clk 0:02:53]}  a5 {[%clk 0:02:35]} 9. axb5 {[%clk 0:02:49]}  cxb5 {[%clk 0:02:35]} 10. bxc4 {[%clk 0:02:48]}  b4 {[%clk 0:02:36]} 11. Be2 {[%clk 0:02:45]}  Nf6 {[%clk 0:02:34]} 12. Bf3 {[%clk 0:02:42]}  Ra7 {[%clk 0:02:34]} 13. O-O {[%clk 0:02:42]}  O-O {[%clk 0:02:34]} 14. c5 {[%clk 0:02:33]}  Ba6 {[%clk 0:02:19]} 15. Re1 {[%clk 0:02:20]}  Nd5 {[%clk 0:02:18]} 16. Qc2 {[%clk 0:02:07]}  Nc6 {[%clk 0:02:12]} 17. Nc4 {[%clk 0:02:02]}  Bxc4 {[%clk 0:01:38]} 18. Qxc4 {[%clk 0:02:03]}  Qb8 {[%clk 0:01:35]} 19. Bxd5 {[%clk 0:02:00]}  exd5 {[%clk 0:01:36]} 20. Qxd5 {[%clk 0:02:01]}  Rc8 {[%clk 0:01:37]} 21. Qb3 {[%clk 0:01:56]}  Ne7 {[%clk 0:01:12]} 22. Nd2 {[%clk 0:01:52]}  Ra6 {[%clk 0:01:11]} 23. Nc4 {[%clk 0:01:49]}  Rh6 {[%clk 0:01:11]} 24. h3 {[%clk 0:01:47]}  Nf5 {[%clk 0:00:44]} 25. Ne5 {[%clk 0:01:45]}  Rf8 {[%clk 0:00:39]} 26. Nd7 {[%clk 0:01:30]}  Qd8 {[%clk 0:00:28]} 27. Nxf8 {[%clk 0:01:28]}  Qg5 {[%clk 0:00:28]} 28. e4 {[%clk 0:01:04]}  Rg6 {[%clk 0:00:25]} 29. Nxg6 {[%clk 0:00:58]}  Nxd4 {[%clk 0:00:23]} 30. Qg3 {[%clk 0:00:54]} 1-0


[Site "https://www.chess.com"]

[Event "Titled Tuesday Blitz October 25 Late 2022"]
[White "Firouzja, Alireza"]
[Black "Pap, Gyula"]
[WhiteFideId "12573981"]
[BlackFideId "725323"]
[WhiteElo "2903"]
[BlackElo "2519"]
[Result "1-0"]
[Round "07"]
[TimeControl "180+1"]
[Date "2022.10.26"]
[WhiteClock "0:00:18"]
[BlackClock "0:00:01"]

1. d4 {[%clk 0:03:00]}  e6 {[%clk 0:02:59]} 2. c4 {[%clk 0:02:49]}  Bb4+ {[%clk 0:02:59]} 3. Bd2 {[%clk 0:02:49]}  Bxd2+ {[%clk 0:02:59]} 4. Nxd2 {[%clk 0:02:50]}  d5 {[%clk 0:02:55]} 5. e3 {[%clk 0:02:50]}  Nf6 {[%clk 0:02:55]} 6. Ngf3 {[%clk 0:02:49]}  O-O {[%clk 0:02:56]} 7. cxd5 {[%clk 0:02:49]}  exd5 {[%clk 0:02:53]} 8. Bd3 {[%clk 0:02:44]}  c6 {[%clk 0:02:52]} 9. O-O {[%clk 0:02:43]}  Bg4 {[%clk 0:02:50]} 10. Qc2 {[%clk 0:02:42]}  Bxf3 {[%clk 0:02:49]} 11. gxf3 {[%clk 0:02:35]}  a5 {[%clk 0:02:43]} 12. Kh1 {[%clk 0:02:35]}  Na6 {[%clk 0:02:43]} 13. a3 {[%clk 0:02:35]}  Nc7 {[%clk 0:02:16]} 14. Rg1 {[%clk 0:02:19]}  Ne6 {[%clk 0:02:16]} 15. f4 {[%clk 0:02:18]}  Kh8 {[%clk 0:02:13]} 16. Nf3 {[%clk 0:02:13]}  Qe7 {[%clk 0:02:08]} 17. Ne5 {[%clk 0:02:09]}  c5 {[%clk 0:02:05]} 18. dxc5 {[%clk 0:02:07]}  Nxc5 {[%clk 0:02:05]} 19. Bf5 {[%clk 0:02:04]}  Rad8 {[%clk 0:01:58]} 20. Rad1 {[%clk 0:02:03]}  Nce4 {[%clk 0:01:53]} 21. f3 {[%clk 0:02:02]}  Nd6 {[%clk 0:01:50]} 22. Bh3 {[%clk 0:01:59]}  Nc4 {[%clk 0:01:45]} 23. Nxc4 {[%clk 0:01:58]}  dxc4 {[%clk 0:01:45]} 24. Qc3 {[%clk 0:01:56]}  b5 {[%clk 0:01:38]} 25. e4 {[%clk 0:01:54]}  Nh5 {[%clk 0:01:28]} 26. Qe3 {[%clk 0:01:34]}  Qf6 {[%clk 0:01:07]} 27. f5 {[%clk 0:01:32]}  Rxd1 {[%clk 0:01:01]} 28. Rxd1 {[%clk 0:01:29]}  Qxb2 {[%clk 0:01:01]} 29. Bf1 {[%clk 0:01:10]}  Qe5 {[%clk 0:00:55]} 30. Rd5 {[%clk 0:01:05]}  Qa1 {[%clk 0:00:54]} 31. Kg2 {[%clk 0:01:01]}  c3 {[%clk 0:00:45]} 32. Rc5 {[%clk 0:00:58]}  b4 {[%clk 0:00:44]} 33. axb4 {[%clk 0:00:54]}  axb4 {[%clk 0:00:45]} 34. e5 {[%clk 0:00:52]}  Qb2+ {[%clk 0:00:25]} 35. Kg1 {[%clk 0:00:52]}  c2 {[%clk 0:00:25]} 36. e6 {[%clk 0:00:51]}  Nf6 {[%clk 0:00:26]} 37. exf7 {[%clk 0:00:49]}  b3 {[%clk 0:00:15]} 38. Rc7 {[%clk 0:00:44]}  h6 {[%clk 0:00:10]} 39. Qc5 {[%clk 0:00:42]}  Rxf7 {[%clk 0:00:06]} 40. Rc8+ {[%clk 0:00:27]}  Kh7 {[%clk 0:00:07]} 41. Kh1 {[%clk 0:00:27]}  c1=Q {[%clk 0:00:06]} 42. Qxc1 {[%clk 0:00:26]}  Qxc1 {[%clk 0:00:07]} 43. Rxc1 {[%clk 0:00:26]}  b2 {[%clk 0:00:08]} 44. Rb1 {[%clk 0:00:25]}  Rb7 {[%clk 0:00:08]} 45. Bc4 {[%clk 0:00:25]}  Rb4 {[%clk 0:00:07]} 46. Be6 {[%clk 0:00:26]}  Nh5 {[%clk 0:00:05]} 47. Kg2 {[%clk 0:00:26]}  Nf4+ {[%clk 0:00:05]} 48. Kf2 {[%clk 0:00:27]}  Nd3+ {[%clk 0:00:04]} 49. Ke3 {[%clk 0:00:27]}  Nc5 {[%clk 0:00:03]} 50. Bd5 {[%clk 0:00:25]}  Na4 {[%clk 0:00:02]} 51. Kd3 {[%clk 0:00:25]}  Rh4 {[%clk 0:00:01]} 52. Bc6 {[%clk 0:00:23]}  h5 {[%clk 0:00:01]} 53. Ke3 {[%clk 0:00:18]} 1-0


[Site "https://www.chess.com"]